fUSD/lending_fUSD_20240910
["ID","MTS","AMOUNT","RATE_DAILY","PERIOD"]
[337675550,1725939803459,-500.0,0.00012561,2]
[337675551,1725939803482,-500.0,0.00012561,2]
[337675552,1725939803502,-500.0,0.00012561,2]
[337675553,1725939803525,-500.0,0.00012561,2]
[337675554,1725939803545,-500.81239354,0.00012561,2]
[337675555,1725939803566,-500.0,0.00012561,2]
[337675556,1725939803587,-3635.57,0.00012561,2]
[337675557,1725939803606,-456.19521347,0.00012561,2]
[337675558,1725939803625,-1609.56,0.00012561,2]
[337675559,1725939803645,-3728.95,0.00012561,2]
[337675560,1725939803665,-7519.12,0.00012561,2]
[337675561,1725939803685,-3339.05,0.00012561,2]
[337675562,1725939803705,-4215.26,0.00012561,2]
[337675563,1725939803724,-9406.52,0.00012561,2]
[337675564,1725939803744,-4497.53,0.00012561,2]
[337675565,1725939803763,-500.0,0.00012561,2]
[337675566,1725939803785,-1464.25,0.00012561,2]
[337675567,1725939803806,-765.19,0.00012561,2]
[337675568,1725939803826,-500.0,0.00012561,2]
[337675569,1725939803847,-1409.52,0.00012561,2]
[337675570,1725939803870,-3843.24,0.00012561,2]
[337675571,1725939803889,-503.95,0.00012561,2]
[337675572,1725939803910,-673.49,0.00012561,2]
[337675573,1725939803930,-500.0,0.00012561,2]
[337675574,1725939803951,-844.17,0.00012561,2]
[337675575,1725939803971,-500.0,0.00012561,2]
[337675576,1725939803992,-1368.62,0.00012561,2]
[337675577,1725939804012,-3013.67,0.00012561,2]
[337675578,1725939804033,-292.68814959,0.00012561,2]
[337675579,1725939804053,-1361.73,0.00012561,2]
[337675580,1725939804074,-2254.1,0.00012561,2]
[337675581,1725939804094,-500.0,0.00012561,2]
[337675582,1725939804114,-3614.97,0.00012561,2]
[337675583,1725939804133,-1033.17,0.00012561,2]
[337675584,1725939804153,-3841.54,0.00012561,2]
[337675585,1725939804173,-7125.87,0.00012561,2]
[337675586,1725939804194,-500.0,0.00012561,2]
[337675587,1725939804214,-1730.18,0.00012561,2]
[337675588,1725939804234,-4313.82,0.00012561,2]
[337675589,1725939804254,-2728.07,0.00012561,2]
[337675590,1725939804275,-4281.82,0.00012561,2]
[337675591,1725939804295,-2101.1,0.00012561,2]
[337675592,1725939804315,-6748.57,0.00012561,2]
[337675593,1725939804335,-500.0,0.00012561,2]
[337675594,1725939804356,-576.21,0.00012561,2]
[337675595,1725939804376,-5962.31,0.00012561,2]
[337675596,1725939804396,-81361.63,0.00012561,2]
[337675597,1725939804415,-500.0,0.00012561,2]
[337675598,1725939804435,-3404.29,0.00012561,2]
[337675599,1725939804454,-640.93,0.00012561,2]
[337675600,1725939804474,-1724.84,0.00012561,2]
[337675601,1725939804495,-500.0,0.00012561,2]
[337675602,1725939804514,-8266.62,0.00012561,2]
[337675603,1725939804535,-500.0,0.00012561,2]
[337675604,1725939804555,-10664.54,0.00012561,2]
[337675605,1725939804575,-13213.19,0.00012561,2]
[337675606,1725939804596,-3414.66,0.00012561,2]
[337675607,1725939804618,-65107.26,0.00012561,2]
[337675608,1725939804640,-5630.3,0.00012561,2]
[337675609,1725939804661,-3192.93,0.00012561,2]
[337675610,1725939804682,-500.02170236,0.00012562,2]
[337675611,1725939804703,-500.0,0.00012562,2]
[337675612,1725939804723,-2116.37,0.00012562,2]
[337675613,1725939804744,-1191.25,0.00012562,2]
[337675614,1725939804765,-500.0,0.00012562,2]
[337675615,1725939804790,-1413.9,0.00012562,2]
[337675616,1725939804810,-2724.87,0.00012562,2]
[337675617,1725939804830,-500.0,0.00012562,2]
[337675618,1725939804852,-500.0,0.00012562,2]
[337675619,1725939804875,-555.06,0.00012562,2]
[337675620,1725939804897,-1653.92,0.00012562,2]
[337675621,1725939804919,-598.75,0.00012562,2]
[337675622,1725939804940,-4049.38,0.00012562,2]
[337675623,1725939804964,-5223.87,0.00012562,2]
[337675624,1725939804986,-500.0,0.00012562,2]
[337675625,1725939805007,-638.26,0.00012562,2]
[337675626,1725939805028,-500.0,0.00012562,2]
[337675627,1725939805050,-2527.59,0.00012562,2]
[337675628,1725939805071,-500.0,0.00012562,2]
[337675629,1725939805092,-500.0,0.00012562,2]
[337675630,1725939805115,-25308.75363216,0.00012562,2]
[337675631,1725939827456,363.21,9.825e-05,2]
[337675632,1725939877331,737.6,0.0001171,2]
[337675633,1725939927851,50000.0,0.00012,2]
[337675634,1725939940914,220.54,0.0001169,2]
[337675635,1725939944853,163.45,0.00011709,2]
[337675636,1725940016885,-363.21,0.00012089,2]
[337675637,1725940016910,-500.0,0.00012163,2]
[337675638,1725940016938,-150.0,0.00012356,2]
[337675639,1725940016961,-150.0,0.00012393,2]
[337675641,1725940050886,183.61,0.00011671,2]
[337675642,1725940052546,-1305.55369823,0.00012291,2]
[337675643,1725940179474,-150.0,0.00015344,120]
[337675644,1725940179496,-150.0,0.00015449,120]
[337675645,1725940179518,-150.0,0.00015466,120]
[337675646,1725940179548,-150.0,0.0001562,120]
[337675647,1725940179582,-150.0,0.00015891,120]
[337675648,1725940179607,-150.0,0.00016019,120]
[337675649,1725940179637,-150.0,0.00016196,120]
[337675650,1725940179668,-150.0,0.00016431,120]
[337675651,1725940179700,-150.0,0.00016756,120]
[337675652,1725940179722,-150.0,0.00016812,120]
[337675653,1725940179743,-150.0,0.00016937,120]
[337675654,1725940179774,-150.0,0.00016976,120]
[337675655,1725940179797,-150.0,0.00016998,120]
[337675656,1725940179820,-150.0,0.00017022,120]
[337675657,1725940179843,-150.0,0.00017155,120]
[337675658,1725940179880,-150.0,0.00017442,120]
[337675659,1725940179912,-150.0,0.00017559,120]
[337675660,1725940179946,-150.0,0.00017775,120]
[337675661,1725940179969,-150.0,0.00017941,120]
[337675662,1725940180010,-150.0,0.00018417,120]
[337675663,1725940180032,-150.0,0.00018476,120]
[337675664,1725940180064,-150.0,0.00018683,120]
[337675665,1725940180087,-150.0,0.00018713,120]
[337675666,1725940201797,-150.0,0.00019187,120]
[337675667,1725940201820,-150.0,0.00019239,120]
[337675668,1725940201844,-150.0,0.00019296,120]
[337675669,1725940201869,-150.0,0.00019393,120]
[337675670,1725940201896,-150.0,0.00019453,120]
[337675671,1725940201919,-150.0,0.00019764,120]
[337675672,1725940201944,-150.0,0.00019847,120]
[337675673,1725940201967,-150.0,0.00019865,120]
[337675674,1725940201989,-150.0,0.00019954,120]
[337675675,1725940202011,-200.0,0.0002,120]
[337675676,1725940203202,250.0,0.00011658,2]
[337675677,1725940215223,-220.01,0.0001229,2]
[337675681,1725940237550,-600.0,0.000123,4]
[337675682,1725940237562,-152.67502348,0.00012339,2]
[337675683,1725940237572,-1300.0,0.000124,4]
[337675684,1725940237582,-150.0,0.00012404,2]
[337675685,1725940237592,-2648.12005998,0.00012405,2]
[337675686,1725940237639,-1123.86994002,0.00012405,2]
[337675687,1725940237648,-150.0,0.00012438,2]
[337675688,1725940237657,-150.0,0.0001244,2]
[337675689,1725940237666,-1679.63079293,0.0001244,2]
[337675690,1725940237677,-440.41776,0.0001244,2]
[337675691,1725940237686,-150.0,0.00012457,2]
[337675692,1725940237695,-911.7747,0.0001246,2]
[337675693,1725940237704,-5673.30680705,0.0001246,2]
[337675853,1725940239550,-196.68214465,0.0001246,2]
[337675880,1725940239826,-2907.0527483,0.0001246,2]
[337675882,1725940239836,-764.73638694,0.0001246,2]
[337675883,1725940239846,-2000.0,0.000125,4]
[337675885,1725940239855,-150.0,0.0001254,2]
[337675887,1725940239864,-150.0,0.00012544,2]
[337675889,1725940239874,-156.72,0.00012551,2]
[337675891,1725940239883,-6193.55161814,0.00012556,2]
[337675893,1725940239897,-11430.99576546,0.00012556,2]
[337675895,1725940239907,-150.0,0.00012559,2]
[337675896,1725940239915,-993.98,0.00012559,2]
[337675898,1725940239925,-1817.71,0.00012559,2]
[337675900,1725940239934,-1932.57,0.0001256,2]
[337675902,1725940239943,-500.0,0.0001256,2]
[337675904,1725940239953,-500.0,0.0001256,2]
[337675905,1725940239962,-846.16866851,0.0001256,2]
[337676136,1725940242445,-77.24133149,0.0001256,2]
[337676138,1725940242455,-2069.13,0.0001256,2]
[337676140,1725940242465,-500.0,0.0001256,2]
[337676141,1725940242474,-500.0,0.0001256,2]
[337676142,1725940242482,-500.0,0.0001256,2]
[337676143,1725940242492,-3712.67,0.0001256,2]
[337676144,1725940242501,-500.0,0.0001256,2]
[337676145,1725940242510,-1637.17,0.0001256,2]
[337676146,1725940242519,-500.0,0.0001256,2]
[337676147,1725940242528,-500.0,0.0001256,2]
[337676148,1725940242537,-2281.97,0.0001256,2]
[337676149,1725940242546,-500.0,0.0001256,2]
[337676150,1725940242555,-500.0,0.0001256,2]
[337676151,1725940242564,-1177.86,0.0001256,2]
[337676152,1725940242573,-500.0,0.0001256,2]
[337676153,1725940242582,-500.0,0.0001256,2]
[337676154,1725940242591,-1911.18,0.0001256,2]
[337676155,1725940242601,-500.0,0.0001256,2]
[337676156,1725940242610,-500.0,0.0001256,2]
[337676157,1725940242618,-3371.12,0.0001256,2]
[337676158,1725940242627,-500.0,0.0001256,2]
[337676159,1725940242636,-500.0,0.0001256,2]
[337676160,1725940242645,-2674.12,0.0001256,2]
[337676161,1725940242655,-3356.41,0.0001256,2]
[337676162,1725940242666,-1708.79,0.0001256,2]
[337676163,1725940242676,-1874.02,0.0001256,2]
[337676164,1725940242687,-4003.07,0.0001256,2]
[337676165,1725940242696,-1566.1,0.0001256,2]
[337676166,1725940242708,-2868.91,0.0001256,2]
[337676167,1725940242717,-500.0,0.0001256,2]
[337676168,1725940242726,-1472.68,0.0001256,2]
[337676169,1725940242736,-500.0,0.0001256,2]
[337676170,1725940242745,-500.0,0.0001256,2]
[337676171,1725940242755,-8196.38,0.0001256,2]
[337676172,1725940242765,-1792.78,0.0001256,2]
[337676173,1725940242774,-713.42,0.0001256,2]
[337676175,1725940242783,-11222.92,0.0001256,2]
[337676177,1725940242793,-8688.57,0.0001256,2]
[337676179,1725940242802,-614.23,0.0001256,2]
[337676181,1725940242811,-500.0,0.0001256,2]
[337676183,1725940242820,-8281.6,0.0001256,2]
[337676185,1725940242830,-1024.98,0.0001256,2]
[337676206,1725940242965,-500.0,0.0001256,2]
[337676208,1725940242981,-10220.18,0.0001256,2]
[337676210,1725940242990,-500.0,0.0001256,2]
[337676212,1725940243000,-10282.26,0.0001256,2]
[337676214,1725940243009,-5395.71,0.0001256,2]
[337676216,1725940243018,-4310.13,0.0001256,2]
[337676218,1725940243027,-3484.08,0.0001256,2]
[337676220,1725940243036,-5179.18,0.0001256,2]
[337676222,1725940243046,-1542.5,0.0001256,2]
[337676224,1725940243055,-500.0,0.0001256,2]
[337676226,1725940243064,-3323.0,0.0001256,2]
[337676228,1725940243074,-500.0,0.0001256,2]
[337676230,1725940243083,-4018.6,0.0001256,2]
[337676232,1725940243092,-3573.57,0.0001256,2]
[337676234,1725940243102,-924.09,0.0001256,2]
[337676236,1725940243111,-4175.6,0.0001256,2]
[337676238,1725940243120,-7205.83,0.0001256,2]
[337676240,1725940243130,-1123.82,0.0001256,2]
[337676242,1725940243140,-3199.93,0.0001256,2]
[337676244,1725940243150,-1403.24,0.0001256,2]
[337676246,1725940243159,-978.66,0.0001256,2]
[337676248,1725940243169,-4315.61,0.0001256,2]
[337676250,1725940243178,-645.43,0.0001256,2]
[337676252,1725940243188,-4039.63,0.0001256,2]
[337676254,1725940243199,-500.0,0.0001256,2]
[337676256,1725940243208,-1868.33,0.0001256,2]
[337676258,1725940243219,-9014.58,0.0001256,2]
[337676261,1725940243230,-6353.27,0.0001256,2]
[337676263,1725940243241,-4547.9,0.0001256,2]
[337676265,1725940243250,-2455.4,0.0001256,2]
[337676267,1725940243260,-4023.84,0.0001256,2]
[337676269,1725940243269,-500.0,0.0001256,2]
[337676271,1725940243279,-1305.0,0.0001256,2]
[337676272,1725940243288,-3870.45,0.0001256,2]
[337676274,1725940243298,-733.31,0.0001256,2]
[337676277,1725940243308,-809.0,0.0001256,2]
[337676278,1725940243317,-2916.89189301,0.0001256,2]
[337676281,1725940243330,-10883.84810699,0.0001256,2]
[337676283,1725940243339,-2888.1,0.0001256,2]
[337676285,1725940243348,-3968.16,0.0001256,2]
[337676287,1725940243358,-1350.79,0.0001256,2]
[337676289,1725940243367,-2160.18,0.0001256,2]
[337676291,1725940243377,-5554.3,0.0001256,2]
[337676293,1725940243386,-1311.6,0.0001256,2]
[337676295,1725940243396,-2130.53,0.0001256,2]
[337676297,1725940243406,-2280.39,0.0001256,2]
[337676299,1725940243415,-3153.68,0.0001256,2]
[337676301,1725940243425,-4103.41,0.0001256,2]
[337676303,1725940243436,-6828.96,0.0001256,2]
[337676305,1725940243446,-5463.81,0.0001256,2]
[337676307,1725940243457,-2153.13,0.0001256,2]
[337676309,1725940243467,-1845.56082749,0.0001256,2]
[337676312,1725940243479,-279.92356222,0.0001256,2]
[337676412,1725940244508,-5238.30100076,0.0001256,2]
[337676414,1725940244525,-500.0,0.0001256,2]
[337676416,1725940244542,-3932.95846468,0.0001256,2]
[337676505,1725940245642,-42062.28546278,0.0001256,2]
[337676507,1725940245653,-865.73861028,0.0001256,2]
[337676509,1725940245664,-721.62621433,0.0001256,2]
[337677066,1725940252366,-714.0,0.0001229,2]
[337677201,1725940337146,372.72,9.884e-05,2]
[337677202,1725940358195,409.92,0.00011763,2]
[337677203,1725940452877,223.56,0.00011718,2]
[337677204,1725940556802,153.45,0.0001174,2]
[337677205,1725940557207,153.45,0.00011755,2]
[337677206,1725940557257,153.45,0.0001177,2]
[337677207,1725940557430,153.45,0.00011784,2]
[337677208,1725940557647,153.45,0.00011799,2]
[337677209,1725940606645,156.55,0.00010959,2]
[337677210,1725940654361,750.0,0.00011,2]
[337677211,1725940704835,250.0,0.00011708,2]
[337677212,1725940712287,153.15,9.367e-05,2]
[337677213,1725940876499,672.06,0.00011707,2]
[337677215,1725940905554,362.67,9.804e-05,2]
[337677216,1725940910968,-362.67,0.00012068,2]
[337677218,1725941190633,250.0,0.00011834,2]
[337677219,1725941223643,223.6,0.00011852,2]
[337677221,1725941258237,158.46,0.00010959,2]
[337677222,1725941351714,-915.52662424,0.000123,4]
[337677223,1725941351769,-384.47337576,0.000123,4]
[337677224,1725941351798,-827.350988,0.000124,2]
[337677225,1725941351826,-2600.0,0.000124,4]
[337677226,1725941352004,-2245.1080784,0.00012412,2]
[337677227,1725941385516,462.35,0.00011742,2]
[337677232,1725941431600,-1495.7119216,0.00012412,2]
[337677233,1725941431610,-423.59961,0.0001244,2]
[337677234,1725941431619,-688.2627483,0.00012457,2]
[337677235,1725941431629,-3791.17,0.0001247,2]
[337677236,1725941431638,-300.0,0.00012499,2]
[337677237,1725941431648,-4000.0,0.000125,4]
[337677238,1725941431657,-6008.67003595,0.000125,2]
[337677239,1725941431669,-538.29120614,0.000125,2]
[337677240,1725941431680,-1200.0,0.000125,2]
[337677241,1725941431691,-320.66312088,0.000125,2]
[337677242,1725941431709,-3416.88,0.000125,2]
[337677243,1725941431721,-1914.03894294,0.000125,2]
[337677244,1725941431753,-359.16532702,0.000125,2]
[337677245,1725941431765,-446.69476748,0.000125,2]
[337677246,1725941431774,-945.35940103,0.00012557,2]
[337677247,1725941431793,-4458.95684898,0.00012557,2]
[337677248,1725941431819,-759.60244759,0.00012557,2]
[337677249,1725941431875,-2622.37071056,0.00012557,2]
[337677256,1725941437756,-1058.85812392,0.00012557,2]
[337677295,1725941439704,-419.85187608,0.00012557,2]
[337677296,1725941439713,-1525.56036845,0.00012557,2]
[337677297,1725941439792,-268.96963155,0.00012557,2]
[337677298,1725941439802,-1532.4,0.00012557,2]
[337677299,1725941439813,-614.96,0.00012557,2]
[337677300,1725941439822,-61844.07,0.00012557,2]
[337677301,1725941439831,-8758.89,0.00012557,2]
[337677302,1725941439840,-4241.09,0.00012557,2]
[337677303,1725941439850,-500.0,0.00012557,2]
[337677304,1725941439862,-2066.57,0.00012557,2]
[337677305,1725941439872,-888.73,0.00012557,2]
[337677306,1725941439881,-3560.38,0.00012557,2]
[337677307,1725941439890,-293.28146639,0.00012557,2]
[337677308,1725941439901,-266.56,0.00012557,2]
[337677309,1725941440003,-535.90853361,0.00012557,2]
[337677310,1725941440015,-447.76257351,0.00012557,2]
[337677562,1725941442810,-2415.78742649,0.00012557,2]
[337677564,1725941442819,-1139.56,0.00012557,2]
[337677566,1725941442829,-2940.0,0.00012557,2]
[337677568,1725941442838,-5179.18,0.00012557,2]
[337677570,1725941442848,-5544.54,0.00012557,2]
[337677572,1725941442857,-4018.6,0.00012557,2]
[337677574,1725941442867,-3037.84,0.00012557,2]
[337677576,1725941442876,-4175.6,0.00012557,2]
[337677578,1725941442886,-1724.37,0.00012557,2]
[337677580,1725941442895,-10796.38,0.00012557,2]
[337677582,1725941442904,-4315.61,0.00012557,2]
[337677583,1725941442913,-978.66,0.00012557,2]
[337677585,1725941442923,-5406.96,0.00012557,2]
[337677587,1725941442932,-3023.26,0.00012557,2]
[337677589,1725941442941,-1868.33,0.00012557,2]
[337677591,1725941442951,-3233.09,0.00012557,2]
[337677593,1725941442960,-4547.9,0.00012557,2]
[337677595,1725941442969,-21594.63,0.00012557,2]
[337677597,1725941442978,-6473.44,0.00012557,2]
[337677600,1725941442988,-4023.84,0.00012557,2]
[337677602,1725941442998,-4226.71,0.00012557,2]
[337677603,1725941443007,-3870.45,0.00012557,2]
[337677605,1725941443016,-500.0,0.00012557,2]
[337677607,1725941443025,-59294.99,0.00012557,2]
[337677611,1725941443034,-13347.24,0.00012557,2]
[337677613,1725941443044,-3802.82,0.00012557,2]
[337677615,1725941443053,-9078.87,0.00012557,2]
[337677617,1725941443063,-5322.87,0.00012557,2]
[337677619,1725941443072,-4297.86,0.00012557,2]
[337677621,1725941443081,-2063.03,0.00012557,2]
[337677623,1725941443090,-2185.38,0.00012557,2]
[337677625,1725941443099,-1108.54579801,0.00012557,2]
[337677695,1725941445702,-1580.25000003,0.00012557,2]
[337677696,1725941445915,-258.97620004,0.00012557,2]
[337677698,1725941504666,31987.91,7.781e-05,7]
[337677699,1725941504689,40266.0642907,7.781e-05,7]
[337677700,1725941512689,326.4,9.818e-05,2]
[337677701,1725941522183,-326.4,0.00012082,2]
[337677702,1725941692317,500.0,9.497e-05,2]
[337677703,1725941699325,-500.0,0.00012237,2]
[337677704,1725941759578,500.0,9.497e-05,2]
[337677705,1725941761826,366.31,0.00010959,2]
[337677706,1725941783874,250.0,0.00011661,2]
[337677707,1725941788257,289.1,0.00010959,2]
[337677708,1725941798785,240.92,0.00010959,2]
[337677709,1725941809376,200.76,0.00010959,2]
[337677710,1725941811798,153.08,9.32e-05,2]
[337677711,1725941819905,167.3,0.00010959,2]
[337677712,1725941830740,836.55,0.00010959,2]
[337677713,1725941835706,20388.63,0.00011641,2]
[337677714,1725941843192,221.15,0.00011632,2]
[337677715,1725941850319,-248.226519,0.00012238,2]
[337677716,1725941856557,450.0,0.00011632,2]
[337677717,1725941864143,1350.0,0.0001,10]
[337677718,1725941931690,1404.28,0.00011632,2]
[337677719,1725941936545,630.12,0.00011632,2]
[337677720,1725942002749,150.0,0.00011632,2]
[337677721,1725942002919,151.23908463,0.00011632,2]
[337677722,1725942029390,315.29,9.716e-05,2]
[337677723,1725942029753,315.29,0.0001198,2]
[337677724,1725942038950,794.11,0.00011633,2]
[337677725,1725942066462,250.0,0.00011633,2]
[337677727,1725942094634,442.7,0.00011641,2]
[337677728,1725942127922,-421.44286435,0.00012066,2]
[337677729,1725942138946,289.19,0.00011639,2]
[337677730,1725942162437,238.56,0.00011639,2]
[337677731,1725942204348,200.0,0.00011639,2]
[337677732,1725942292751,250.0,0.00011627,2]
[337677733,1725942305576,153.08,9.298e-05,2]
[337677734,1725942308903,250.0,0.00011622,2]
[337677735,1725942329206,3045.3352434,0.00012,2]
[337677736,1725942334355,1182.76,0.0001163,2]
[337677737,1725942358003,153.67,0.00010959,2]
[337677738,1725942367315,-184.16169411,0.000123,2]
[337677739,1725942391655,3305.08,0.00011661,2]
[337677740,1725942428637,500.0,9.497e-05,2]
[337677741,1725942431105,223.08,0.0001165,2]
[337677742,1725942455896,702.14,0.00011632,2]
[337677744,1725942474339,750.0,0.00011,2]
[337677749,1725942526768,495.9,0.00011636,2]
[337677751,1725942539356,-1200.0,0.000123,4]
[337677752,1725942539386,-784.0,0.00012385,2]
[337677753,1725942539418,-2032.54495519,0.000124,4]
[337677754,1725942541148,283.76,9.707e-05,2]
[337677755,1725942541531,283.76,0.00011971,2]
[337677759,1725942606443,-210.52102186,0.00012084,2]
[337677764,1725942631783,-467.45504481,0.000124,4]
[337677766,1725942631793,-619.43647347,0.000124,2]
[337677768,1725942631802,-3717.86,0.00012426,2]
[337677769,1725942631811,-153.65201141,0.00012426,2]
[337677770,1725942631821,-353.30441506,0.00012426,2]
[337677771,1725942631830,-1213.14599368,0.00012426,2]
[337677772,1725942631839,-367.0148,0.0001243,2]
[337677773,1725942631849,-2079.31549436,0.00012448,2]
[337677774,1725942631864,-641.43342479,0.00012448,2]
[337677775,1725942631876,-1036.99108085,0.00012448,2]
[337677776,1725942631886,-413.00891915,0.0001248,2]
[337677777,1725942631898,-2712.56655245,0.0001248,2]
[337677778,1725942631922,-648.12882621,0.0001248,2]
[337677779,1725942631933,-3.86570219,0.0001248,2]
[337677780,1725942631943,-150.0,0.00012498,2]
[337677781,1725942631952,-374.53403365,0.00012499,2]
[337677782,1725942631964,-4804.64596635,0.00012499,2]
[337677783,1725942631975,-1995.35403365,0.00012499,2]
[337677784,1725942631987,-3549.18596635,0.00012499,2]
[337677785,1725942631996,-4018.6,0.00012499,2]
[337677786,1725942632007,-4175.6,0.00012499,2]
[337677787,1725942632016,-4315.61,0.00012499,2]
[337677788,1725942632026,-978.66,0.00012499,2]
[337677789,1725942632036,-1868.33,0.00012499,2]
[337677790,1725942632045,-4547.9,0.00012499,2]
[337677791,1725942632055,-4023.84,0.00012499,2]
[337677792,1725942632065,-500.0,0.00012499,2]
[337677793,1725942632075,-3870.45,0.00012499,2]
[337677794,1725942632084,-13347.24,0.00012499,2]
[337677795,1725942632094,-3802.82,0.00012499,2]
[337677796,1725942632104,-5322.87,0.00012499,2]
[337677797,1725942632113,-2185.38,0.00012499,2]
[337677798,1725942632124,-4947.89,0.00012499,2]
[337677799,1725942632134,-1741.98,0.00012499,2]
[337677800,1725942632144,-1662.95,0.00012499,2]
[337677801,1725942632153,-952.56,0.00012499,2]
[337677802,1725942632162,-2181.72,0.00012499,2]
[337677803,1725942632172,-2063.41,0.00012499,2]
[337677804,1725942632182,-14800.27889644,0.000125,2]
[337677805,1725942632194,-1922.41615197,0.000125,2]
[337677806,1725942632205,-2727.3619961,0.000125,2]
[337677807,1725942632217,-10371.38293521,0.000125,2]
[337677808,1725942632229,-2100.0,0.000125,2]
[337677809,1725942632241,-421.24760668,0.000125,2]
[337677810,1725942632252,-287.25129197,0.000125,2]
[337677811,1725942632263,-881.08675534,0.000125,2]
[337677812,1725942632292,-397.7418011,0.000125,2]
[337677813,1725942632303,-1029.07753147,0.000125,2]
[337677814,1725942637857,-5686.33463656,0.00012499,2]
[337677815,1725942637869,-1926.85694413,0.00012499,2]
[337677816,1725942638034,-2501.26841931,0.00012499,2]
[337677817,1725942638044,-5721.68412463,0.000125,2]
[337677818,1725942638055,-2930.9,0.000125,2]
[337677821,1725942639822,-431.39001,0.00012499,2]
[337677822,1725942639935,-0.08273801,0.00012499,2]
[337677823,1725942639947,-724.76725199,0.00012499,2]
[337677824,1725942639957,-500.0,0.00012499,2]
[337677825,1725942639966,-3992.47846714,0.000125,2]
[337677826,1725942640003,-588.2445,0.000125,2]
[337677827,1725942640015,-3500.0,0.000125,2]
[337677828,1725942640098,-3153.00204471,0.000125,2]
[337677829,1725942640129,-592.92362617,0.000125,2]
[337677830,1725942640140,-11359.45915573,0.000125,2]
[337677831,1725942640155,-289.58588344,0.000125,2]
[337677832,1725942640167,-794.56642176,0.000125,2]
[337677833,1725942640180,-283.45,0.000125,2]
[337677834,1725942640192,-509.8840154,0.000125,2]
[337677915,1725942642824,-7832.58094494,0.000125,2]
[337677916,1725942642882,-10617.27147713,0.000125,2]
[337677917,1725942642893,-490.45,0.000125,2]
[337677947,1725942643614,-1578.62846982,0.000125,2]
[337677948,1725942643633,-382.20241823,0.000125,2]
[337677949,1725942643644,-160444.84348462,0.000125,2]
[337677950,1725942643653,-3800.0,0.000125,4]
[337677951,1725942643662,-38875.71231339,0.000125,2]
[337677952,1725942643674,-608.1292825,0.000125,2]
[337677953,1725942645855,-740.40033588,0.00012499,2]
[337677954,1725942645868,-585.71,0.00012499,2]
[337677955,1725942645914,-142.43966412,0.00012499,2]
[337677956,1725942645924,-311.02251809,0.000125,2]
[337677957,1725942646027,-551.31139182,0.000125,2]
[337677958,1725942646038,-4919.07120143,0.000125,2]
[337677959,1725942646049,-1034.05360558,0.000125,2]
[337677960,1725942646086,-729.12371714,0.000125,2]
[337677961,1725942646099,-6772.36392534,0.000125,2]
[337677962,1725942646110,-1753.85498398,0.000125,2]
[337677963,1725942646121,-1919.57705919,0.000125,2]
[337677964,1725942646132,-1221.58322691,0.000125,2]
[337677965,1725942646145,-939.883994,0.000125,2]
[337677966,1725942646157,-1185.57,0.000125,2]
[337677967,1725942646168,-9769.14972056,0.000125,2]
[337677968,1725942646180,-448.44880798,0.000125,2]
[337677970,1725942673391,-200.0,0.000122,4]
[337677972,1725942740466,6928.82,0.00011662,2]
[337677973,1725942764704,200.0,0.00011607,2]
[337677974,1725942792805,250.0,0.00011607,2]
[337677975,1725942810117,650.43,0.00011616,2]